[Event "Biel Challengers Blitz 2024"]
[White "Salem,A.R. Saleh"]
[Black "Bjerre,Jonas Buhl"]
[Site "Biel"]
[Round "8.2"]
[Annotator "TA"]
[Result "1-0"]
[Date "2024.07.21"]
[WhiteElo "2638"]
[BlackElo "2653"]
[PlyCount "69"]
[TimeControl "180+2"]

{[%evp 16,69,-32,-43,-42,-34,-38,-60,-61,-70,-46,-51,-55,-59,179,170,172,175,184,179,215,64,97,58,151,141,137,147,233,205,222,180,174,180,355,353,489,496,753,749,732,731,871,847,4132,4133,4133,4133,4133,4133,4134,4133,29969,6203,29987,29988]} 1. d4 {[%emt 0:0:1]} Nf6 {[%emt 0:0:0]} 2. c4 {[%emt 0:0:2]} e6 {[%emt 0:0:1]} 3. Nc3 {[%emt 0:0:1]} Bb4 {[%emt 0:0:1]} 4. a3 {[%emt 0:0:0]} Bxc3+ {[%emt 0:0:2]} 5. bxc3 {[%emt 0:0:1]} c5 {[%emt 0:0:2]} 6. f3 {[%emt 0:0:0]} Nc6 {[%emt 0:0:5]} 7. e4 {[%emt 0:0:1]} d6 {[%emt 0:0:1]} 8. Be3 {[%emt 0:0:2]} b6 {[%emt 0:0:5]} 9. Bd3 {[%emt 0:0:2]} Na5 {[%emt 0:0:6]} 10. Ne2 {[%emt 0:0:1]} Ba6 {[%emt 0:0:3]} 11. O-O {[%emt 0:0:3]} Nd7 {[%emt 0:0:15] Schwarz steht etwas besser.} (11... Bxc4 $2 12. Bxc4 Nxc4 13. Qa4+ Qd7 14. Qxc4 $18 )(11... Nxc4 12. Qa4+ Nd7 (12... Qd7 $2 13. Qxa6 d5 14. dxc5 $18 )13. Bxc4 $18 )12. f4 {[%emt 0:0:13][%cal Bf3f4,Bf4f5][%mdl 32]} Bxc4 {[%emt 0:0:9]} 13. f5 {[%emt 0:0:1]} e5 {[%emt 0:0:14]} 14. f6 {[%emt 0:0:1]} Bxd3 $2 {[%emt 0:0:6]} (14... g6 $1 $15 {bleibt weiter vorne.} )15. fxg7 $18 {[%emt 0:0:9]} Rg8 {[%emt 0:0:1][%cal Bh8g8,Bg8g7,Bg7g6][%mdl 32]} 16. Qxd3 {[%emt 0:0:3]} Rxg7 {[%emt 0:0:1]} 17. Ng3 {[%emt 0:0:1]} Rg6 {[%emt 0:0:11] [#]} 18. Rf3 $2 {[%emt 0:0:14]} ({Der einzige Zug:} 18. dxc5 $1 $18 {Zielt auf Qd5 ab.} Rc8 19. cxd6 )Qc7 {[%emt 0:0:6]} 19. Raf1 {[%emt 0:0:12] Weiß steht aktiver.} f6 {[%emt 0:0:0]} ({Besser ist} 19... cxd4 $14 20. cxd4 Qc4 )20. Nf5 $16 {[%emt 0:0:3] dxc5 wäre nun fies.} O-O-O {[%emt 0:0:54]} 21. Ne7+ {[%emt 0:0:1]} Kb7 {[%emt 0:0:0]} (21... Kb8 $16 )22. Nxg6 {[%emt 0:0:1]} hxg6 {[%emt 0:0:1]} 23. d5 {[%emt 0:0:5]} c4 {[%emt 0:0:5]} 24. Qe2 {[%emt 0:0:2]} b5 $2 {[%emt 0:0:7]} (24... Rh8 25. Rh3 Rxh3 )25. Rh3 $18 {[%emt 0:0:2]} Nc5 {[%emt 0:0:10]} 26. Qg4 {[%emt 0:0:22]} (26. Rxf6 Nxe4 27. Rf1 (27. Rxg6 Nxc3 28. Qg4 Rd7 $18 )Rd7 $18 (27... Nxc3 $2 {ist das falsche Schlagen.} 28. Qb2 $18 ))Qf7 {[%emt 0:0:14]} (26... g5 $142 27. Rxf6 Rd7 )27. Bxc5 {[%emt 0:0:2]} dxc5 {[%emt 0:0:2]} 28. Rh6 {[%emt 0:0:18]} Rg8 {[%emt 0:0:10]} 29. Qh4 {[%emt 0:0:3]} f5 {[%emt 0:0:7]} 30. Rh7 {[%emt 0:0:15]} Rg7 {[%emt 0:0:2]} 31. Rxg7 {[%emt 0:0:1]} Qxg7 {[%emt 0:0:1]} 32. exf5 {[%emt 0:0:2]} gxf5 {[%emt 0:0:3]} 33. Rxf5 {[%emt 0:0:0] [#] Droht stark Qh5.} e4 {[%emt 0:0:2]} 34. Qxe4 {[%emt 0:0:15]} (34. Qf4 $142 a6 35. Rf7+ (35. Qxe4 Ka7 $18 )Qxf7 36. Qxf7+ Kb6 37. d6 Nb7 38. Qc7+ Ka7 39. d7 )Nb3 {[%emt 0:0:2]} 35. Qe6 {[%emt 0:0:23] Gewichteter Fehlerwert: Weiß=0.18 (sehr präzise) /Schwarz=1.08.  Verlustzug:     	---       	Schwarz=1     Fehler:       	Weiß=1     	Schwarz=4     Ungenau:       	Weiß=1     	Schwarz=2     OK:         	Weiß=5     	Schwarz=7     Bester:       	Weiß=4     	---} 1-0

[Event "Biel Challengers Blitz 2024"]
[White "Vaishali,Rameshbabu"]
[Black "Maurizzi,Marc`Andria"]
[Site "Biel"]
[Round "8.3"]
[Annotator "TA"]
[Result "1-0"]
[Date "2024.07.21"]
[WhiteElo "2489"]
[BlackElo "2610"]
[PlyCount "141"]
[TimeControl "180+2"]

{[%evp 59,141,-41,-16,-40,-11,-3,-15,-12,-10,-19,-27,-45,-62,-60,-64,-64,-47,-64,-31,-64,-64,-85,-93,-96,-93,-100,-69,-153,-137,-158,-84,-116,-106,-165,-144,-142,-43,-47,-47,-135,-47,-216,-68,-72,-58,-82,-51,-32,-41,-47,0,0,0,0,0,0,0,-857,0,0,0,-256,0,0,0,0,0,0,14,15,1508,8,1738,1190,727,682,29963,29965,29965,29967,29967,29968,29971,29971]} 1. e4 {[%emt 0:0:2]} e5 {[%emt 0:0:0]} 2. Nf3 {[%emt 0:0:1]} Nc6 {[%emt 0:0:1]} 3. Nc3 {[%emt 0:0:1]} Nf6 {[%emt 0:0:5]} 4. Bb5 {[%emt 0:0:1]} Bd6 {[%emt 0:0:9]} 5. d3 {[%emt 0:0:3]} O-O {[%emt 0:0:2]} 6. Ba4 {[%emt 0:0:1]} a6 {[%emt 0:0:5]} 7. a3 {[%emt 0:0:3]} Re8 {[%emt 0:0:6]} 8. Be3 {[%emt 0:0:12]} Bf8 {[%emt 0:0:9]} 9. Bb3 {[%emt 0:0:14]} d6 {[%emt 0:0:8]} 10. Ng5 {[%emt 0:0:9]} Be6 {[%emt 0:0:0]} 11. Nxe6 {[%emt 0:0:2]} fxe6 {[%emt 0:0:0]} 12. O-O {[%emt 0:0:3]} Kh8 {[%emt 0:0:10]} 13. f4 {[%emt 0:0:3]} d5 {[%emt 0:0:12]} 14. fxe5 {[%emt 0:0:14]} Nxe5 {[%emt 0:0:1]} 15. Bg5 {[%emt 0:0:3]} dxe4 {[%emt 0:0:37]} 16. Bxf6 {[%emt 0:0:43]} gxf6 {[%emt 0:0:2]} 17. Nxe4 {[%emt 0:0:1]} f5 {[%emt 0:0:11]} 18. Ng3 {[%emt 0:0:4]} Qh4 {[%emt 0:0:12]} 19. Qh5 {[%emt 0:0:13]} Bc5+ {[%emt 0:0:1]} 20. Kh1 {[%emt 0:0:2]} Qxh5 {[%emt 0:0:0]} 21. Nxh5 {[%emt 0:0:1]} Ng4 {[%emt 0:0:1]} 22. h3 {[%emt 0:0:11]} Ne3 {[%emt 0:0:3]} 23. Rf3 {[%emt 0:0:7]} e5 {[%emt 0:0:17]} 24. Re1 {[%emt 0:0:16]} f4 {[%emt 0:0:0]} 25. Nf6 {[%emt 0:0:5]} Re7 {[%emt 0:0:0]} 26. Nd5 {[%emt 0:0:10]} Rg7 {[%emt 0:0:0]} 27. Nxe3 {[%emt 0:0:16]} Bxe3 {[%emt 0:0:0]} 28. Bd5 {[%emt 0:0:13]} c6 {[%emt 0:0:0]} 29. Be4 {[%emt 0:0:1]} Rag8 {[%emt 0:0:0]} 30. Rff1 {[%emt 0:0:2]} Rg3 {[%emt 0:0:0]} 31. Kh2 {[%emt 0:0:2]} Bd4 {[%emt 0:0:6]} 32. c3 {[%emt 0:0:4]} Be3 {[%emt 0:0:1]} 33. Re2 {[%emt 0:0:3]} R3g7 {[%emt 0:0:2]} 34. Rf3 {[%emt 0:0:11]} h5 {[%emt 0:0:8]} 35. Rfxe3 {[%emt 0:0:0]} fxe3 {[%emt 0:0:1]} 36. Rxe3 {[%emt 0:0:0]} Rf8 {[%emt 0:0:20]} 37. Bf3 {[%emt 0:0:2]} Rg5 {[%emt 0:0:1]} 38. b4 {[%emt 0:0:3]} Kg7 {[%emt 0:0:2]} 39. a4 {[%emt 0:0:10]} h4 {[%emt 0:0:4]} 40. Re4 {[%emt 0:0:1]} Rf4 {[%emt 0:0:1]} 41. Re2 {[%emt 0:0:4]} Kf6 {[%emt 0:0:10]} 42. Rb2 {[%emt 0:0:1]} Rg7 {[%emt 0:0:2]} 43. Re2 {[%emt 0:0:2]} ({Vorzuziehen ist} 43. c4 $15 )Rd7 $1 $17 {[%emt 0:0:5]} 44. Be4 {[%emt 0:0:2]} Rd8 {[%emt 0:0:3]} (44... Rf1 $142 45. Rc2 Rf7 )45. Kg1 {[%emt 0:0:2]} Ke7 {[%emt 0:0:4]} 46. Rb2 {[%emt 0:0:4]} (46. a5 $17 {war einen Versuch wert.} )Kd6 {[%emt 0:0:8]} 47. b5 {[%emt 0:0:2] [#]} Kc7 {[%emt 0:0:1]} (47... cxb5 $1 $17 48. axb5 axb5 49. Rxb5 Ra8 )48. bxc6 $15 {[%emt 0:0:4]} bxc6 {[%emt 0:0:0]} 49. Rb4 {[%emt 0:0:2]} (49. a5 $15 )Rc8 {[%emt 0:0:7]} (49... Rff8 $17 {Droht stark ...Rb8.} 50. Rc4 Rd6 )50. Rc4 $2 {[%emt 0:0:1] [#]} (50. a5 $1 $15 )Kd6 {[%emt 0:0:1]} (50... Kb6 $1 $19 {Und ...c5 würde nun gewinnen.} 51. Kh2 a5 )51. Rb4 $1 $15 {[%emt 0:0:1]} a5 {[%emt 0:0:2]} 52. Rb6 {[%emt 0:0:1]} Rf7 {[%emt 0:0:12]} 53. Ra6 {[%emt 0:0:2]} Rb7 {[%emt 0:0:1]} 54. Rxa5 {[%emt 0:0:2]} Rb6 {[%emt 0:0:5]} (54... Rf8 $15 55. Bf3 Rb1+ 56. Kf2 Rb3 )55. c4 $11 {[%emt 0:0:2]} Rb1+ {[%emt 0:0:9]} 56. Kf2 {[%emt 0:0:4]} Rf8+ {[%emt 0:0:2]} 57. Bf3 {[%emt 0:0:1]} Rfb8 {[%emt 0:0:12]} 58. Ra6 $2 {[%emt 0:0:4][%mdl 8192]} (58. Ke3 $11 )R8b6 $2 {[%emt 0:0:1]} (58... R8b2+ $19 59. Be2 Ra1 )59. Rxb6 $11 {[%emt 0:0:2]} Rxb6 {[%emt 0:0:1]} 60. g3 $2 {[%emt 0:0:2][%mdl 8192]} (60. Be4 $11 )hxg3+ $2 {[%emt 0:0:1]} ({Besser ist} 60... Rb2+ $19 61. Kg1 hxg3 )61. Kxg3 $11 {[%emt 0:0:1]} Rb3 {[%emt 0:0:3]} 62. Be4 {[%emt 0:0:1]} Ra3 {[%emt 0:0:1]} 63. h4 {[%emt 0:0:2]} Rxa4 {[%emt 0:0:0]} 64. h5 {[%emt 0:0:1]} Ke6 $2 {[%emt 0:0:14][%mdl 8192]} (64... Ra8 $11 )65. h6 $2 {[%emt 0:0:1]} (65. Bxc6 $18 Ra1 66. Be4 )Kf6 $2 {[%emt 0:0:2][%mdl 8192]} (65... Ra8 $11 )66. Bxc6 $18 {[%emt 0:0:4]} Ra7 {[%emt 0:0:5]} 67. Be4 {[%emt 0:0:1]} Ra1 {[%emt 0:0:2]} 68. h7 {[%emt 0:0:1]} Kg7 {[%emt 0:0:1]} 69. c5 {[%emt 0:0:3]} Rc1 {[%emt 0:0:1]} 70. c6 {[%emt 0:0:0]} Rc5 {[%emt 0:0:2]} 71. Kg4 {[%emt 0:0:3]} 1-0

[Event "Biel Challengers Blitz 2024"]
[White "Vaishali,Rameshbabu"]
[Black "Samunenkov,Ihor"]
[Site "Biel"]
[Round "9.1"]
[Annotator "TA"]
[Result "0-1"]
[Date "2024.07.21"]
[WhiteElo "2489"]
[BlackElo "2532"]
[PlyCount "88"]
[TimeControl "180+2"]

{[%evp 22,88,0,0,0,-33,-37,-52,-47,-46,-38,-76,-54,-64,-64,-113,-95,-91,-105,-107,-100,-120,-83,-175,-173,-167,-178,-179,-185,-204,-200,-255,-242,-248,-268,-253,-279,-281,-156,-203,-203,-252,-239,-300,-271,-333,-333,-315,-300,-291,-230,-318,-300,-522,-349,-420,-321,-616,-604,-794,-753,-654,-631,-29973,-29974,-29962,-29944,-6419,-6287]} 1. d4 {[%emt 0:0:2]} d5 {[%emt 0:0:3]} 2. Nf3 {[%emt 0:0:2]} Nf6 {[%emt 0:0:2]} 3. e3 {[%emt 0:0:1]} e6 {[%emt 0:0:4]} 4. Bd3 {[%emt 0:0:4]} Be7 {[%emt 0:0:9]} 5. O-O {[%emt 0:0:3]} O-O {[%emt 0:0:4]} 6. b3 {[%emt 0:0:1]} b6 {[%emt 0:0:3]} 7. Bb2 {[%emt 0:0:1]} Bb7 {[%emt 0:0:2]} 8. Nbd2 {[%emt 0:0:6]} Nbd7 {[%emt 0:0:2]} 9. Ne5 {[%emt 0:0:2]} Nxe5 {[%emt 0:0:18]} 10. dxe5 {[%emt 0:0:1]} Ne4 {[%emt 0:0:1]} 11. f4 {[%emt 0:0:28]} Nxd2 {[%emt 0:0:16]} 12. Qxd2 {[%emt 0:0:2]} c5 {[%emt 0:0:6]} 13. f5 {[%emt 0:0:25]} exf5 {[%emt 0:0:7]} 14. Bxf5 {[%emt 0:0:2]} g6 {[%emt 0:0:8] Black is slightly better.} 15. Bd3 {[%emt 0:0:43]} Bg5 {[%emt 0:0:6]} 16. Qe2 {[%emt 0:0:12]} Qe7 {[%emt 0:0:4]} 17. Rf2 {[%emt 0:0:9]} Bh6 {[%emt 0:0:29]} 18. c4 {[%emt 0:0:35]} (18. Raf1 $15 )Bg7 {[%emt 0:0:8]} 19. cxd5 {[%emt 0:0:10]} Bxd5 {[%emt 0:0:2]} 20. e4 {[%emt 0:0:2] [#]} Be6 {[%emt 0:0:26]} 21. Raf1 {[%emt 0:0:9]} Qg5 {[%emt 0:0:2]} 22. Qf3 {[%emt 0:0:19]} (22. Bc4 $17 {was called for.} )Bxe5 $19 {[%emt 0:0:10]} 23. h4 {[%emt 0:0:4]} Qg3 {[%emt 0:0:1]} (23... Qxh4 $2 24. Bxe5 b5 25. Qe3 $18 (25. Bxb5 a5 $18 ))24. Bxe5 {[%emt 0:0:4]} Qxe5 {[%emt 0:0:2]} 25. h5 {[%emt 0:0:1]} Rad8 {[%emt 0:0:9]} (25... gxh5 26. Be2 )(25... Qxh5 26. Qxh5 gxh5 27. Be2 )26. h6 {[%emt 0:0:2]} Qg5 {[%emt 0:0:3]} 27. Bc4 {[%emt 0:0:2] [#]} Bxc4 {[%emt 0:0:4]} (27... Qxh6 28. Bxe6 fxe6 29. Qg4 $17 )28. bxc4 {[%emt 0:0:0]} Qxh6 {[%emt 0:0:2]} 29. e5 {[%emt 0:0:1]} Qg7 {[%emt 0:0:24]} (29... Qh4 $19 30. Qa3 Qxc4 31. Qxa7 b5 )30. Qg3 {[%emt 0:0:4]} (30. Qe3 $17 {was worth a try.} )Rde8 {[%emt 0:0:5]} 31. Re2 {[%emt 0:0:2]} Re6 {[%emt 0:0:1]} 32. a4 {[%emt 0:0:2]} Rfe8 {[%emt 0:0:1][%cal Re6e5]} 33. Rfe1 {[%emt 0:0:1]} h5 {[%emt 0:0:5]} 34. Re4 {[%emt 0:0:2]} Kh7 {[%emt 0:0:5]} 35. Qf4 {[%emt 0:0:2]} R8e7 {[%emt 0:0:1]} 36. R1e3 {[%emt 0:0:2]} Qh6 {[%emt 0:0:4]} 37. Qf2 $2 {[%emt 0:0:3]} (37. Qh4 )Qg5 {[%emt 0:0:1][%cal Of7f5] Strongly threatening ...f5!} 38. Rf4 {[%emt 0:0:2]} Kg7 {[%emt 0:0:3]} (38... Rxe5 39. Rxf7+ Kg8 40. Rxe5 Qxe5 (40... Rxf7 $2 41. Rxg5 Rxf2 42. Kxf2 $18 )41. Rxe7 Qxe7 42. Qg3 $19 )39. Rfe4 $2 {[%emt 0:0:2]} (39. Ref3 Qxe5 (39... Rxe5 $2 40. Rxf7+ Kh6 41. Rxe7 $19 )40. Rxf7+ Kh6 41. Rxe7 Rxe7 42. Rf7 )Rxe5 {[%emt 0:0:5]} 40. Qb2 {[%emt 0:0:3]} f6 {[%emt 0:0:1][%csl LRe3,LRe4]} 41. Rxe5 {[%emt 0:0:3]} Rxe5 {[%emt 0:0:1]} 42. Rd3 {[%emt 0:0:1]} Re1+ {[%emt 0:0:2]} 43. Kf2 {[%emt 0:0:1]} Qh4+ {[%emt 0:0:3]} 44. g3 {[%emt 0:0:2]} Qh2+ {[%emt 0:0:1] Black took control after the opening.   Weighted Error Value: White=0.64/Black=0.21 (precise) .  Mistake:       	White=5     	Black=1      Inaccurate:     	White=4     	Black=2      OK:         	White=5     	Black=13     Best:        	---       	Black=1} (44... Qxc4 $2 {loses.} 45. Rd7+ Kg8 46. Rd8+ (46. Kxe1 $2 Qe6+ 47. Kd1 Qxd7+ $19 )Kf7 47. Kxe1 $18 )0-1

[Event "Biel Challengers Blitz 2024"]
[White "Maurizzi,Marc`Andria"]
[Black "Salem,A.R. Saleh"]
[Site "Biel"]
[Round "9.2"]
[Annotator "TA"]
[Result "0-1"]
[Date "2024.07.21"]
[WhiteElo "2610"]
[BlackElo "2638"]
[PlyCount "70"]
[TimeControl "180+2"]

{[%evp 15,70,0,0,0,17,0,-5,-12,-19,-56,-45,-81,0,0,0,0,0,-16,-15,-106,6,-26,0,-25,-27,-79,-67,-71,-63,-70,-47,-53,-40,-65,-48,-67,-41,-82,-135,-177,-168,-179,-105,-255,-217,-214,-222,-242,-242,-341,-240,-240,-268,-1430,-795,-737,-661]} 1. e4 {[%emt 0:0:1][%cal Be2e4,Be4e5][%mdl 32]} e6 {[%emt 0:0:1]} 2. d4 {[%emt 0:0:1]} d5 {[%emt 0:0:2]} 3. e5 {[%emt 0:0:2]} c5 {[%emt 0:0:0]} 4. c3 {[%emt 0:0:1]} Nc6 {[%emt 0:0:1]} 5. Nf3 {[%emt 0:0:0]} Qb6 {[%emt 0:0:2]} 6. a3 {[%emt 0:0:1]} c4 {[%emt 0:0:1]} 7. Nbd2 {[%emt 0:0:3]} Na5 {[%emt 0:0:2]} 8. Rb1 {[%emt 0:0:2]} Bd7 {[%emt 0:0:1]} 9. h4 {[%emt 0:0:1]} O-O-O {[%emt 0:0:2]} 10. Be2 {[%emt 0:0:2]} Kb8 {[%emt 0:0:4]} 11. Kf1 {[%emt 0:0:2] The position is equal.} f6 {[%emt 0:0:2]} 12. h5 {[%emt 0:0:5]} Nh6 {[%emt 0:0:1][%cal Bg8h6,Bh6f7,Bf7g5,Bg5e4][%mdl 32]} 13. Kg1 {[%emt 0:0:10] [#]} Be8 {[%emt 0:0:7]} (13... Nf7 $1 $17 )14. Nf1 $11 {[%emt 0:0:3]} Nf7 {[%emt 0:0:16]} 15. Bf4 {[%emt 0:0:1]} Ka8 {[%emt 0:0:1]} 16. Ne3 {[%emt 0:0:6]} Be7 {[%emt 0:0:13]} 17. Ng4 {[%emt 0:0:12]} (17. Rh3 $11 )h6 {[%emt 0:0:14]} (17... f5 $17 18. Ne3 Bd7 )18. Qd2 {[%emt 0:0:11]} Ng5 {[%emt 0:0:4]} 19. Re1 {[%emt 0:0:37]} Ne4 {[%emt 0:0:4]} 20. Qc1 {[%emt 0:0:2]} (20. Qc2 $11 )f5 $17 {[%emt 0:0:2][%cal Oa5b3] ...Nb3! is the strong threat.} 21. Ne3 {[%emt 0:0:7]} Nb3 {[%emt 0:0:14] Black has more active pieces.} 22. Qb1 {[%emt 0:0:1]} Bg5 {[%emt 0:0:4]} 23. g3 {[%emt 0:1:29]} Bxf4 {[%emt 0:0:3]} 24. gxf4 {[%emt 0:0:1]} g6 $36 {[%emt 0:0:0][%mdl 2048] Black has the initiative.} 25. hxg6 {[%emt 0:0:7]} Bxg6 {[%emt 0:0:1] Strongly threatening ...Rdg8.} 26. Qc2 {[%emt 0:0:7]} Rdg8 {[%emt 0:0:2]} 27. Ng2 {[%emt 0:0:1]} Be8 {[%emt 0:0:2]} 28. Nfh4 {[%emt 0:0:13]} Rg7 {[%emt 0:0:3]} (28... Qa5 $19 {[%cal Ob3d4] Threatens to win with ...Nxd4!} 29. Qd1 Ba4 )29. f3 {[%emt 0:0:1] This move loses the game for White.} (29. Bf3 $17 )Ng3 {[%emt 0:0:2]} 30. Rh3 {[%emt 0:0:2]} Ba4 {[%emt 0:0:17][%cal Ob3d4]} 31. Qd1 {[%emt 0:0:8]} Rhg8 {[%emt 0:0:15]} 32. Kh2 {[%emt 0:0:0]} (32. Kf2 {keeps fighting.} )Qd8 {[%emt 0:0:7]} 33. Bf1 {[%emt 0:0:1]} Qe8 {[%emt 0:0:11]} 34. Re3 $2 {[%emt 0:0:4] [#] White is weak on the light squares} (34. Be2 )Nxd4 $1 {[%emt 0:0:3][%mdl 512]} 35. Qxd4 {[%emt 0:0:1]} Nxf1+ {[%emt 0:0:1] Weighted Error Value: White=0.55/Black=0.41.  Mistake:       	White=5     	Black=3      Inaccurate:     	White=5     	Black=3      OK:         	White=6     	Black=9      Best:        	White=2     	---} 0-1

[Event "Biel Challengers Blitz 2024"]
[White "Bjerre,Jonas Buhl"]
[Black "Donchenko,Alexander"]
[Site "Biel"]
[Round "9.3"]
[Annotator "RC"]
[Result "0-1"]
[Date "2024.07.21"]
[WhiteElo "2653"]
[BlackElo "2639"]
[PlyCount "68"]
[TimeControl "180+2"]

1. e4 {[%emt 0:0:1]} c6 {[%emt 0:0:0]} 2. Nf3 {[%emt 0:0:3]} d5 {[%emt 0:0:1]} 3. Nc3 {[%emt 0:0:1]} dxe4 {[%emt 0:0:1]} 4. Nxe4 {[%emt 0:0:1]} Nf6 {[%emt 0:0:1]} 5. Qe2 {[%emt 0:0:1]} Nxe4 {[%emt 0:0:1]} 6. Qxe4 {[%emt 0:0:2]} Nd7 {[%emt 0:0:1]} 7. d4 {[%emt 0:0:3]} Nf6 {[%emt 0:0:1]} 8. Qd3 {[%emt 0:0:1]} Bg4 {[%emt 0:0:4]} 9. Ne5 {[%emt 0:0:5]} Bh5 {[%emt 0:0:3]} 10. Be3 {[%emt 0:0:15]} e6 {[%emt 0:0:4]} 11. h3 {[%emt 0:0:44]} Bd6 {[%emt 0:0:5]} 12. g4 {[%emt 0:0:3]} Bg6 {[%emt 0:0:2]} 13. Nxg6 {[%emt 0:0:2]} hxg6 {[%emt 0:0:2]} 14. Bg2 {[%emt 0:0:1]} Nd5 {[%emt 0:0:5]} 15. O-O-O {[%emt 0:0:12]} Nf4 {[%emt 0:0:15]} 16. Bxf4 {[%emt 0:0:6]} Bxf4+ {[%emt 0:0:2]} 17. Kb1 {[%emt 0:0:1]} g5 {[%emt 0:0:1]} 18. Rhe1 {[%emt 0:0:7]} Qe7 {[%emt 0:0:7]} 19. d5 {[%emt 0:0:8]} cxd5 {[%emt 0:0:2]} 20. Qb5+ {[%emt 0:0:3]} Qd7 {[%emt 0:0:35]} 21. Rxd5 {[%emt 0:0:2]} Qxb5 {[%emt 0:0:1]} 22. Rxb5 {[%emt 0:0:1]} Rb8 {[%emt 0:0:5]} 23. c4 {[%emt 0:0:14]} b6 {[%emt 0:0:5]} 24. a4 {[%emt 0:0:26]} Ke7 {[%emt 0:0:2]} 25. Rd1 {[%emt 0:0:5]} Rhc8 {[%emt 0:0:6]} 26. Bf1 {[%emt 0:0:8]} Rc5 {[%emt 0:0:36]} 27. b4 {[%emt 0:0:6]} Rc7 {[%emt 0:0:15]} 28. a5 {[%emt 0:0:17]} Rc6 {[%emt 0:0:6]} 29. Kb2 {[%emt 0:0:17]} bxa5 {[%emt 0:0:12]} 30. Rxb8 {[%emt 0:0:3]} Bxb8 {[%emt 0:0:1]} 31. b5 {[%emt 0:0:8]} Rc8 {[%emt 0:0:9]} 32. Ra1 {[%emt 0:0:4]} Be5+ {[%emt 0:0:1]} 33. Kb1 {[%emt 0:0:5]} Bxa1 {[%emt 0:0:1]} 34. Kxa1 {[%emt 0:0:2]} Kd6 {[%emt 0:0:2]} 0-1

[Event "Biel Challengers Blitz 2024"]
[White "Samunenkov,Ihor"]
[Black "Bjerre,Jonas Buhl"]
[Site "Biel"]
[Round "10.1"]
[Annotator "RC"]
[Result "1-0"]
[Date "2024.07.21"]
[WhiteElo "2532"]
[BlackElo "2653"]
[PlyCount "121"]
[TimeControl "180+2"]

1. d4 {[%emt 0:0:3]} Nf6 {[%emt 0:0:1]} 2. g3 {[%emt 0:0:1]} d5 {[%emt 0:0:5]} 3. Nf3 {[%emt 0:0:2]} c5 {[%emt 0:0:2]} 4. Bg2 {[%emt 0:0:2]} cxd4 {[%emt 0:0:1]} 5. O-O {[%emt 0:0:2]} h6 {[%emt 0:0:1]} 6. b3 {[%emt 0:0:3]} e6 {[%emt 0:0:5]} 7. Bb2 {[%emt 0:0:2]} Bc5 {[%emt 0:0:2]} 8. Nxd4 {[%emt 0:0:5]} e5 {[%emt 0:0:9]} 9. Nf3 {[%emt 0:0:3]} e4 {[%emt 0:0:3]} 10. Nd4 {[%emt 0:0:1]} O-O {[%emt 0:0:11]} 11. c4 {[%emt 0:0:2]} Nc6 {[%emt 0:0:27]} 12. Nxc6 {[%emt 0:0:29]} bxc6 {[%emt 0:0:1]} 13. cxd5 {[%emt 0:0:2]} cxd5 {[%emt 0:0:1]} 14. Nc3 {[%emt 0:0:2]} e3 {[%emt 0:0:56]} 15. f4 {[%emt 0:0:8]} Bb7 {[%emt 0:0:14]} 16. Na4 {[%emt 0:0:17]} Bb4 {[%emt 0:0:6]} 17. Qd4 {[%emt 0:0:5]} Bd2 {[%emt 0:0:1]} 18. Nc5 {[%emt 0:0:26]} Bc6 {[%emt 0:0:6]} 19. Bc1 {[%emt 0:0:23]} Ne4 {[%emt 0:0:7]} 20. Bxd2 {[%emt 0:0:33]} exd2 {[%emt 0:0:1]} 21. e3 {[%emt 0:0:2]} Qb6 {[%emt 0:0:11]} 22. Nxe4 {[%emt 0:0:7]} dxe4 {[%emt 0:0:24]} 23. Qxd2 {[%emt 0:0:3]} Rfd8 {[%emt 0:0:1]} 24. Qf2 {[%emt 0:0:3]} Rd3 {[%emt 0:0:3]} 25. Rfe1 {[%emt 0:0:12]} Rad8 {[%emt 0:0:1]} 26. Re2 {[%emt 0:0:11]} a5 {[%emt 0:0:8]} 27. h3 {[%emt 0:0:4]} Bb7 {[%emt 0:0:6]} 28. Rc1 {[%emt 0:0:5]} f5 {[%emt 0:0:10]} 29. Kh2 {[%emt 0:0:2]} Qb4 {[%emt 0:0:2]} 30. Rc4 {[%emt 0:0:3]} Qa3 {[%emt 0:0:2]} 31. Rc7 {[%emt 0:0:5]} Ba6 {[%emt 0:0:2]} 32. Rec2 {[%emt 0:0:1]} Qb4 {[%emt 0:0:3]} 33. a3 {[%emt 0:0:12]} Qxb3 {[%emt 0:0:3]} 34. Ra7 {[%emt 0:0:1]} Bc4 {[%emt 0:0:7]} 35. Rb2 {[%emt 0:0:3]} Qc3 {[%emt 0:0:2]} 36. Rc7 {[%emt 0:0:2]} R3d7 {[%emt 0:0:4]} 37. Rc2 {[%emt 0:0:4]} Qxc2 {[%emt 0:0:2]} 38. Qxc2 {[%emt 0:0:1]} Rxc7 {[%emt 0:0:0]} 39. Qc3 {[%emt 0:0:2]} a4 {[%emt 0:0:5]} 40. Qe5 {[%emt 0:0:1]} Rf7 {[%emt 0:0:1]} 41. Qc5 {[%emt 0:0:4]} Bb3 {[%emt 0:0:2]} 42. g4 {[%emt 0:0:2]} fxg4 {[%emt 0:0:2]} 43. hxg4 {[%emt 0:0:2]} Rd2 {[%emt 0:0:1]} 44. Kg3 {[%emt 0:0:1]} Bc2 {[%emt 0:0:2]} 45. Qc8+ {[%emt 0:0:4]} Kh7 {[%emt 0:0:2]} 46. Qc3 {[%emt 0:0:1]} Rfd7 {[%emt 0:0:4]} 47. g5 {[%emt 0:0:3]} hxg5 {[%emt 0:0:2]} 48. fxg5 {[%emt 0:0:2]} Bb1 {[%emt 0:0:3]} 49. Qe5 {[%emt 0:0:1]} R2d6 {[%emt 0:0:2]} 50. Bxe4+ {[%emt 0:0:2]} Bxe4 {[%emt 0:0:0]} 51. Qxe4+ {[%emt 0:0:1]} g6 {[%emt 0:0:1]} 52. Qxa4 {[%emt 0:0:2]} Re7 {[%emt 0:0:1]} 53. Qh4+ {[%emt 0:0:4]} Kg7 {[%emt 0:0:1]} 54. Qh6+ {[%emt 0:0:1]} Kg8 {[%emt 0:0:1]} 55. Kf3 {[%emt 0:0:2]} Rde6 {[%emt 0:0:2]} 56. e4 {[%emt 0:0:5]} Ra7 {[%emt 0:0:2]} 57. Kf4 {[%emt 0:0:1]} Ra4 {[%emt 0:0:1]} 58. Qh1 {[%emt 0:0:1]} Rxa3 {[%emt 0:0:2]} 59. Qc1 {[%emt 0:0:1]} Ra4 {[%emt 0:0:2]} 60. Qc8+ {[%emt 0:0:2]} Kf7 {[%emt 0:0:3]} 61. Qd7+ {[%emt 0:0:1]} 1-0